Cogmind - Beta 13 @@@ ROGUE MODE // 2024.05.25 @ 23:01:05 Player: vault Result: Destroyed by G-47 Trooper with Particle Gun Performance ------------- Evolutions (2) 1000 Regions Visited (6) 1200 Robots Destroyed (40) 200 Value Destroyed (1131) 1131 Prototype IDs (0) 0 Alien Tech Used (0) 0 Bonus (0) 0 TOTAL SCORE: 3531 Bonus ------- None Cogmind --------- Core Integrity 0/550 Matter 171/300 Energy 250/250 System Corruption 2% Temperature Cool (9) Movement Treading (160) Location -8/Storage Parts ------- > --- POWER (1) -------- Ion Engine > --- PROPULSION (4) --- Light Treads > --- UTILITY (3) ------ Heat Sink Terrain Scan Processor Light Armor Plating > --- WEAPON (3) ------- Heavy Assault Rifle Minigun > --- INVENTORY (5) ---- Heat Sink High-capacity Matter Pod (179) Medium Armor Plating Peak State ------------ > --- POWER ------------ Nuclear Core > --- PROPULSION ------- Aluminum Leg Aluminum Leg Aluminum Leg Aluminum Leg > --- UTILITY ---------- Heat Sink Drone Bay Drone Bay > --- WEAPON ----------- Particle Gun Particle Gun Heavy Assault Rifle > --- INVENTORY -------- Ion Engine Aluminum Leg Titanium Leg Beam Rifle [Rating: 24] Favorites ----------- Power Ion Engine Engine Ion Engine Power Core Nuclear Core Propulsion Aluminum Leg Treads Light Treads Leg Aluminum Leg Wheel Wheel Utility Heat Sink Device Heat Sink Processor Terrain Scan Processor Protection Light Armor Plating Weapon Light Assault Rifle Energy Gun Particle Gun Energy Cannon Beam Cannon Ballistic Gun Light Assault Rifle Launcher Grenade Launcher Impact Weapon Mace Build | -11 -10 -10 -9 -9 -8 -8 ------- Run | Yrd Mat Min Mat Min Mat Sto Slots Evolved 4 | . . . 2 . 2 . Power . | . . . . . . . Propulsion 2 | . . . 2 . . . Utility 1 | . . . . . 1 . Weapon 1 | . . . . . 1 . Parts Attached 42 | 5 2 . 9 . 3 23 Power 3 | 1 . . . . . 2 Engine 2 | 1 . . . . . 1 Core 1 | . . . . . . 1 Reactor . | . . . . . . . Propulsion 16 | 2 . . 6 . 2 6 Treads 3 | . . . 2 . . 1 Leg 12 | 2 . . 4 . 2 4 Wheel 1 | . . . . . . 1 Hover . | . . . . . . . Flight . | . . . . . . . Utility 9 | . 2 . . . . 7 Device 7 | . 2 . . . . 5 Storage . | . . . . . . . Processor 1 | . . . . . . 1 Hackware . | . . . . . . . Protection 1 | . . . . . . 1 Artifact . | . . . . . . . Weapon 14 | 2 . . 3 . 1 8 Energy Gun 6 | 2 . . . . . 4 Energy Cannon 1 | . . . . . . 1 Ballistic Gun 5 | . . . 2 . 1 2 Ballistic Cannon . | . . . . . . . Launcher 1 | . . . 1 . . . Special Weapon . | . . . . . . . Impact Weapon 1 | . . . . . . 1 Slashing Weapon . | . . . . . . . Piercing Weapon . | . . . . . . . Special Melee Weapon . | . . . . . . . Unidentified Prototypes . | . . . . . . . Parts Lost 25 | . . . 2 . . 23 Power 2 | . . . . . . 2 Propulsion 11 | . . . 2 . . 9 Utility 6 | . . . . . . 6 Weapon 6 | . . . . . . 6 Highest Loss Streak 7 | . . . 1 . . 7 To Critical Strikes 1 | . . . . . . 1 Average Slot Usage (%) 89 | . 98 100 97 100 90 80 Engine 8 | . 14 14 11 11 9 4 Core 1 | . . . . . . 2 Treads 1 | . . . 9 . . . Leg 28 | . 28 28 32 44 36 23 Device 21 | . 26 28 22 22 18 19 Processor 1 | . . . . . . 4 Energy Gun 12 | . 28 28 6 . . 11 Ballistic Gun 10 | . . . 15 22 27 7 Naked Turns . | . . . . . . . Heaviest Build 29 | 8 10 10 11 11 12 29 Greatest Support 47 | 20 20 20 40 40 40 47 Greatest Overweight (x) 3 | . . . . . . 3 Average Overweight (x) . | . . . . . . . Largest Inventory Capacity 5 | 5 5 5 5 5 5 5 Average Capacity 5 | 5 5 5 5 5 5 5 Most Carried 5 | 5 5 5 5 5 5 5 Average Carried 4 | 3 4 4 4 5 4 3 Final Capacity 5 | 5 5 5 5 5 5 5 Final Carried 5 | 4 5 5 5 5 5 3 Class Distribution -------------------- 44% | Mutant 39% | Scavenger-Gunner 16% | Scavenger-Mutant Dominant Class ---------------- Mutant | -10/Materials Mutant | -10/Mines Mutant | -9/Materials Scavenger-Mutant | -9/Mines Scavenger-Gunner | -8/Materials Scavenger-Gunner | -8/Storage Resources | -11 -10 -10 -9 -9 -8 -8 ----------- Run | Yrd Mat Min Mat Min Mat Sto Matter Collected 799 | 44 175 41 152 . . 387 Remotely . | . . . . . . . Salvage Created 1541 | . 209 50 280 . . 1002 Parts 91 | . 13 5 29 . . 44 Haulers Intercepted . | . . . . . . . Recyclers Shooed 1 | . . . . . . 1 Parts Field Recycled . | . . . . . . . Retrieved Matter . | . . . . . . . Parts Self-Destructed . | . . . . . . . Prevented . | . . . . . . . Kills | -11 -10 -10 -9 -9 -8 -8 ------- Run | Yrd Mat Min Mat Min Mat Sto Combat Hostiles Destroyed 36 | . 5 3 11 . . 17 Guns 32 | . 5 3 11 . . 13 Cannons 2 | . . . . . . 2 Classes Destroyed 8 | . 3 . 2 . . 3 Worker 1 | . . . . . . 1 Builder 1 | . . . . . . 1 Recycler 2 | . 1 . . . . 1 Swarmer 14 | . 3 3 8 . . . Grunt 9 | . 2 . 1 . . 6 Brawler 1 | . . . 1 . . . Sentry 11 | . . . 1 . . 10 Hunter 1 | . . . . . . 1 Best Kill Streak 5 | . 3 3 5 . . 5 Combat Bots Only 5 | . 3 3 5 . . 3 Max Kills in Single Turn 2 | . 1 2 2 . . 2 Gunslinging 1 | . . 1 1 . . . Exploded . | . . . . . . . Melee . | . . . . . . . Uniques/NPCs Destroyed . | . . . . . . . Combat | -11 -10 -10 -9 -9 -8 -8 -------- Run | Yrd Mat Min Mat Min Mat Sto Hostile Shots Fired 290 | . 53 4 66 . . 167 Missed 82 | . 18 2 23 . . 39 Damage Taken 2910 | . 323 17 397 . . 2173 Core 700 | . 91 . 55 . . 554 Absorbed by Shields . | . . . . . . . Core Remaining (%) 83 | 100 . 63 . 86 . . Volleys Fired 118 | . 18 2 30 . 1 67 Largest 3 | . 2 2 2 . 3 3 Hottest 181 | . 90 90 90 . 63 181 Shots Fired 245 | . 33 4 60 . 3 145 Gun 223 | . 33 4 60 . 3 123 Cannon 22 | . . . . . . 22 Launcher . | . . . . . . . Special . | . . . . . . . Kinetic 109 | . . . 38 . 3 68 Thermal 136 | . 33 4 22 . . 77 Explosive . | . . . . . . . Electromagnetic . | . . . . . . . Robot Hit Streak 15 | . 6 2 6 . 4 15 Robot Miss Streak 6 | . 3 1 6 . 2 4 Penetration Max . | . . . . . . . Secondary Targets 5 | . 1 1 1 . . 2 Max Gunslinging Chain 1 | . 1 1 1 . . 1 Shots Hit Robots 156 | . 20 3 28 . 1 104 Core Hits 65 | . 9 3 16 . . 37 Critical Kills 1 | . . . . . . 1 Critical Parts Destroyed 1 | . . . . . . 1 Critical Strikes 5 | . 1 . . . . 4 Burn 3 | . 1 . . . . 2 Destroy 1 | . . . . . . 1 Smash 1 | . . . . . . 1 Melee Attacks 15 | . . . . . . 15 Impact 15 | . . . . . . 15 Slashing . | . . . . . . . Piercing . | . . . . . . . Sneak Attacks 3 | . . . . . . 3 Combat Hostiles . | . . . . . . . Follow-up Attacks . | . . . . . . . Damage Inflicted 2430 | 4 224 49 337 9 24 1783 Guns 1872 | . 224 48 329 . 7 1264 Cannons 175 | . . . . . . 175 Explosions . | . . . . . . . Melee 322 | . . . . . . 322 Ramming 61 | 4 . 1 8 9 17 22 Kinetic 897 | . . . 196 . 7 694 Thermal 1150 | . 224 48 133 . . 745 Explosive . | . . . . . . . Electromagnetic . | . . . . . . . Impact 322 | . . . . . . 322 Slashing . | . . . . . . . Piercing . | . . . . . . . Highest Corruption 2 | . . . . . . 2 Average Corruption 1 | . . . . . . 1 Corruption Purged . | . . . . . . . Corruption Blocked . | . . . . . . . Effects 7 | . . . . . . 7 Message Errors 3 | . . . . . . 3 Matter Fused 1 | . . . . . . 1 Heat Flow Errors 1 | . . . . . . 1 Energy Discharges 1 | . . . . . . 1 Misfires 1 | . . . . . . 1 Overload Shots . | . . . . . . . Overflow Damage 51 | . . . . . . 51 Projectiles . | . . . . . . . Explosions . | . . . . . . . Melee 51 | . . . . . . 51 Knockbacks 2 | . . . . . . 2 Impact 2 | . . . . . . 2 Kinetic . | . . . . . . . Secondary . | . . . . . . . Self-Inflicted Damage . | . . . . . . . Shots . | . . . . . . . Rammed 1 | . . . 1 . . . Targets Rammed 18 | 1 . 2 1 1 6 7 Kicked 17 | 1 . 2 . 1 6 7 Crushed . | . . . . . . . Highest Temperature 596 | . . . 14 . . 596 Average Temperature 174 | . . . 7 . . 176 Received Heat Transfer 831 | . 60 . 51 . . 720 Effects 14 | . . . . . . 14 Shutdowns 2 | . . . . . . 2 Short Circuit 1 | . . . . . . 1 Damage (minor) 2 | . . . . . . 2 Damage (major) 7 | . . . . . . 7 Damage (core) 2 | . . . . . . 2 Siege Activations . | . . . . . . . Robots Corrupted . | . . . . . . . Combat Hostiles . | . . . . . . . Parts Fried 6 | . . . . . . 6 Impact Corruptions 4 | . . . . . . 4 Robots Melted . | . . . . . . . Combat Hostiles . | . . . . . . . Parts Melted 11 | . 2 1 3 . . 5 Heat Transferred 3039 | . 669 124 359 . . 1887 Parts Sabotaged . | . . . . . . . Parts Stolen . | . . . . . . . Parts Stripped . | . . . . . . . Power Chain Reactions . | . . . . . . . Alert | -11 -10 -10 -9 -9 -8 -8 ------- Run | Yrd Mat Min Mat Min Mat Sto Peak Influence 344 | . 135 77 344 133 66 187 Initial 133 | . . 7 29 133 51 5 Average 88 | . 62 76 183 133 49 92 Maximum Alert Level 1 | . . . 1 . . . Low Security (%) 95 | 100 100 100 66 100 100 100 Level 1 4 | . . . 33 . . . Level 2 . | . . . . . . . Level 3 . | . . . . . . . Level 4 . | . . . . . . . Level 5 . | . . . . . . . High Security . | . . . . . . . Max Security . | . . . . . . . Squads Dispatched 6 | . 1 1 . . 2 2 Investigation 1 | . . 1 . . . . Extermination . | . . . . . . . Reinforcement 5 | . 1 . . . 2 2 Assault . | . . . . . . . Garrison . | . . . . . . . Intercept . | . . . . . . . Searches Triggered . | . . . . . . . Construction Impeded . | . . . . . . . Haulers Reinforced . | . . . . . . . Active Scanning Responses . | . . . . . . . Cargo Convoy Interrupts . | . . . . . . . Stealth | -11 -10 -10 -9 -9 -8 -8 --------- Run | Yrd Mat Min Mat Min Mat Sto Distress Signals 11 | . 3 . 3 . 1 4 Communications Jammed . | . . . . . . . Distress Signals . | . . . . . . . Times Spotted 62 | . 15 2 18 . 3 24 Peak Tracking Total 7 | . 5 2 7 . 4 4 Tactical Retreats 3 | . 1 . 1 . . 1 Traps | -11 -10 -10 -9 -9 -8 -8 ------- Run | Yrd Mat Min Mat Min Mat Sto Traps Triggered 3 | . . . . . 1 2 Indirectly . | . . . . . . . Trap Hack Attempts . | . . . . . . . Triggered . | . . . . . . . Disarmed . | . . . . . . . Reprogrammed . | . . . . . . . Reused . | . . . . . . . Traps Extracted . | . . . . . . . Installed . | . . . . . . . Triggered . | . . . . . . . Machines | -11 -10 -10 -9 -9 -8 -8 ---------- Run | Yrd Mat Min Mat Min Mat Sto Machines Disabled . | . . . . . . . Max in Single Turn . | . . . . . . . Machines Repaired . | . . . . . . . Machines Dismantled . | . . . . . . . Machines Sabotaged . | . . . . . . . Overloaded Fab Kills . | . . . . . . . Hacking | -11 -10 -10 -9 -9 -8 -8 --------- Run | Yrd Mat Min Mat Min Mat Sto Machines Accessed 2 | . . 1 . . . 1 Terminals 1 | . . . . . . 1 Fabricators . | . . . . . . . Repair Stations . | . . . . . . . Recycling Units . | . . . . . . . Scanalyzers . | . . . . . . . Garrison Access . | . . . . . . . Total Hacks 2 | . . 1 . . . 1 Successful 2 | . . 1 . . . 1 Failed . | . . . . . . . Catastrophic . | . . . . . . . Database Lockouts . | . . . . . . . Manual . | . . . . . . . Terminals 1 | . . . . . . 1 Fabricators . | . . . . . . . Repair Stations . | . . . . . . . Recycling Units . | . . . . . . . Scanalyzers . | . . . . . . . Garrison Access . | . . . . . . . Terminal Hacks 2 | . . 1 . . . 1 Open Door 2 | . . 1 . . . 1 Fabricator Hacks . | . . . . . . . Repair Station Hacks . | . . . . . . . Recycling Unit Hacks . | . . . . . . . Scanalyzer . | . . . . . . . Garrison Access Hacks . | . . . . . . . Unauthorized Hacks . | . . . . . . . Terminals . | . . . . . . . Fabricators . | . . . . . . . Repair Stations . | . . . . . . . Recycling Units . | . . . . . . . Scanalyzers . | . . . . . . . Garrison Access . | . . . . . . . Data Cores Recovered . | . . . . . . . Used . | . . . . . . . Hacking Detections . | . . . . . . . Full Trace Events . | . . . . . . . Feedback Events . | . . . . . . . Feedback Blocked . | . . . . . . . Robot Schematics Acquired . | . . . . . . . Robots Built . | . . . . . . . Authchips . | . . . . . . . Time . | . . . . . . . Total Robot Build Rating . | . . . . . . . Part Schematics Acquired . | . . . . . . . Parts Built . | . . . . . . . Authchips . | . . . . . . . Time . | . . . . . . . Total Part Build Rating . | . . . . . . . Parts Repaired . | . . . . . . . Time . | . . . . . . . Parts Recycled . | . . . . . . . Recycled Matter . | . . . . . . . Retrieved Matter . | . . . . . . . Retrieved Components . | . . . . . . . Parts Scanalyzed . | . . . . . . . Part Schematics Acquired . | . . . . . . . Parts Damaged . | . . . . . . . Bothacking | -11 -10 -10 -9 -9 -8 -8 ------------ Run | Yrd Mat Min Mat Min Mat Sto Used RIF Installer . | . . . . . . . Robots Hacked . | . . . . . . . Non-combat . | . . . . . . . Combat . | . . . . . . . Robot Hacks Applied . | . . . . . . . Relay Couplers Released . | . . . . . . . Fabnet Peak Effective % . | . . . . . . . Robots Rewired . | . . . . . . . Allies Hacked . | . . . . . . . Hacks Repelled . | . . . . . . . Allies | -11 -10 -10 -9 -9 -8 -8 -------- Run | Yrd Mat Min Mat Min Mat Sto Total Allies . | . . . . . . . Largest Group . | . . . . . . . Highest-Rated Group . | . . . . . . . Highest-Rated Ally . | . . . . . . . Total Orders . | . . . . . . . Ally Attacks . | . . . . . . . Total Damage . | . . . . . . . Kills . | . . . . . . . Allies Corrupted . | . . . . . . . Allies Melted . | . . . . . . . Intel | -11 -10 -10 -9 -9 -8 -8 ------- Run | Yrd Mat Min Mat Min Mat Sto Robot Analysis Total . | . . . . . . . Derelict Logs Recovered . | . . . . . . . Drone Launches . | . . . . . . . Drone Recoveries . | . . . . . . . Exploration | -11 -10 -10 -9 -9 -8 -8 ------------- Run | Yrd Mat Min Mat Min Mat Sto Turns Passed 2665 | 62 455 211 349 52 484 1052 Spaces Moved 1226 | 51 227 167 173 43 158 407 Core 134 | 20 . . . . . 114 Treads 108 | . . . 74 . . 34 Legs 984 | 31 227 167 99 43 158 259 Wheels . | . . . . . . . Hover . | . . . . . . . Flight . | . . . . . . . Fastest Speed 50 | 50 120 120 120 120 120 100 Average Speed 121 | 92 120 120 137 120 120 121 Slowest Speed 200 | 120 120 120 160 120 120 200 Overloaded Moves . | . . . . . . . Propulsion Burnouts . | . . . . . . . Robots Hopped . | . . . . . . . Cave-ins Triggered . | . . . . . . . Exploration Rate (%) 26 | 4 37 32 19 15 17 64 Regions Visited 6 Branch Regions 3 Pre-discovered Areas . | . . . . . . . Known Exits Taken . | . . . . . . . Unknown Exits Taken 6 | 1 1 1 1 1 1 . Scrap Searched 2 | . . 2 . . . . Spaces Dug . | . . . . . . . Terrain Destroyed . | . . . . . . . Melee . | . . . . . . . Projectile . | . . . . . . . AOE . | . . . . . . . Terrain Rammed . | . . . . . . . Walls Destroyed . | . . . . . . . Machines Disabled . | . . . . . . . Actions | -11 -10 -10 -9 -9 -8 -8 --------- Run | Yrd Mat Min Mat Min Mat Sto Total 2164 | 65 377 174 231 43 450 824 Wait 683 | . 126 . 3 . 278 276 Move 1220 | 50 226 166 172 42 157 407 Hop . | . . . . . . . Pick Up 52 | 9 4 2 10 . 4 23 Fast Attach . | . . . . . . . Attach 42 | 5 2 . 9 . 3 23 Detach 1 | . . . . . . 1 Swap . | . . . . . . . Drop 15 | . 1 2 6 . 1 5 Fire 118 | . 18 2 30 . 1 67 Melee 15 | . . . . . . 15 Ram . | . . . . . . . Kick 17 | 1 . 2 . 1 6 7 Crush 1 | . . . 1 . . . Escape Stasis . | . . . . . . . Rewire . | . . . . . . . Trap . | . . . . . . . Miscellaneous . | . . . . . . . Route ------- -11/Scrapyard -10/Materials -10/Mines -9/Materials -9/Mines -8/Materials -8/Storage History --------- Turn | Location | Event 8 | -11/Scrapyard | Discovered new exit (range 15) 63 | -11/Scrapyard | Entered Materials 316 | -10/Materials | Build established: Mutant 505 | -10/Materials | Discovered new exit (range 12) 518 | -10/Materials | Entered Mines 576 | -10/Mines | Met a Derelict shopkeep closing up shop 694 | -10/Mines | Discovered new exit (range 9) 729 | -10/Mines | Entered Materials 729 | -9/Materials | Evolved 2 slots: Propulsion x2 1013 | -9/Materials | Discovered new exit (range 8) 1078 | -9/Materials | Entered Mines 1118 | -9/Mines | Discovered new exit (range 8) 1130 | -9/Mines | Entered Materials 1130 | -8/Materials | Evolved 2 slots: Utility x1, Weapon x1 1419 | -8/Materials | Build established: Scavenger-Gunner 1605 | -8/Materials | Discovered new exit (range 4) 1614 | -8/Materials | Entered Storage 2240 | -8/Storage | Lost 7 parts (4n2u1w) 2291 | -8/Storage | Lost 3 parts (1n1u1w) 2356 | -8/Storage | Core integrity fell below 50% 2447 | -8/Storage | Lost 7 parts (1p3n3w) 2542 | -8/Storage | Core integrity fell below 20% 2666 | -8/Storage | Destroyed by G-47 Trooper with Particle Gun Last Messages --------------- Acquired 51 matter. R-06 Scavenger collects Heat Sink. Dropped Lgt. Treads. Acquired Lgt. Treads. Acquired 59 matter. R-06 Scavenger collects Beam Rifle. Acquired Heat Sink. R-06 Scavenger collects Lgt. Treads. Acquired Hvy. Assault Rifle. Acquired Heat Sink. Sneak attack on M-13 Machinist. M-13 Machinist knocked back. W-25 Informer sends out distress signal. Critical hit (Burn: +37). G-47 Trooper suffers critical hit (Destroy). G-47 Trooper destroyed. Mace destroyed. Critical hit (Burn: +37). R-06 Scavenger collects Particle Gun. G-50 Soldier destroyed. Map ----- +----------------------------------------------------+ | | | | | | | | | | | | | | | ?????????????????????????#????? | | ???????????????#??#?##?##???#?? | | ??????????????#??#??#????#??#?? | | ?????????#?#???#??##???????#?#? | | ?????????##????#????#####?#???? | | ???????????????#?####?#??##??#? | | ??????????#?#????#???????????## | | ????????????????#???##??#?#???? | | ?????????????#?###??#??##???#?? | | ????????##??#?############?#??? | | ????????####??# #?##???# | | ????#?#????#??# ######## | | ?#??#?#??????## """" # # | | ????????###?### "??" # #? | | ???????#?????## " " # #? | | ??????##???#### "? " # """ ## | | ??#???#?##??#?# "??" # """ #? | | ?????????##??## """" # """ #? | | ??????##??#?#?# # @% #? | | ????#### ???#+###+######g###? | | ????#""" ??# =#??? | | ????#"Y # #??? | | ?????"?" """ + #??# | | ??????## """ # #### | | ??????# """ # ##/####??? | | ??????#########+## ## #?#?? | | ?#?#?###?# # # T###? | | ?#???????# """"" # # #??? | | ????###### """"" # # #?#? | | ??## ?# """"" # #######??# | | ? ?? ??# # # ? ???# | | ?? T + """"" # # ?? ????? | | ? ? # """"" # #? ????? | | ###? ? # """"" # #??"???? ? | | ???## #### # +????? ??? | | ?## #### # # ???????? | | ????# #### #? ??????????? | | ?? ?# ##?##+######???? ?"?????? | | ?" ## ##### ###### #????????? | | "" ## #????????? | | ## ############ #????????? | | ? ## ##?? ? ? ??????????????? | | ?#### ## ??? ??? ??????????? | +----------------------------------------------------+ Best States ------------- Heat Dissipation 51 Energy Generation 14 Energy Capacity 250 Matter Stores 300 Matter Capacity 300 Sight Range 16 Terrain Scan Range 14 Terrain Scan Density 85 Armor Coverage 150 Evasion (%) 55 Recoil Reduction 1 Trap Extractor Capacity 4 Item Schematics ----------------- None Robot Schematics ------------------ None Fabricated ------------ Nothing Alien Tech Used ----------------- None Achievements -------------- None Challenges ------------ None Game ------ Seed BeamSigixPlating Manual? 0 Play Time 00:24:52 Cumulative 4.6 hours Start 2024.05.25 @ 22:37:05 End 2024.05.25 @ 23:01:05 Sessions 1 Manual Loads 0 Difficulty Rogue Special Mode None Game No. 8 Rogue 8 Adventurer 0 Explorer 0 Win Type - Total 0 Types 0/0/0/0/0/0/0/0/0 Lore% 3 Gallery% 10 Achievement% 8 Wizard Run 0 Options --------- Layout 1 ASCII 0 Keyboard 0 Movement Numpad Keybinds 0 Fullscreen 1 Font 24/Smallcaps Map View 50x35 Zoom Use 0% Tactical HUD 0 Map Filters NONE Filters NONE Steam 1 RUN: fcb23b4b-3051-4181-bfac-cf270dce24bb